[Event "*** Qualifier 1: Titled Tuesday 3|2 Blitz"]
[Site "Chess.com"]
[Date "2017.04.04"]
[Round "1"]
[White "Cryptochess"]
[Black "FearlessKing64"]
[Result "1-0"]
[WhiteElo "2442"]
[BlackElo "2122"]
[TimeControl "180+2"]
[EndTime "13:07:43 PDT"]
[Termination "Cryptochess won by resignation"]

1. e4 {[%clk 0:03:02]} 1... c5 {[%clk 0:03:00.7]} 2. Nc3 {[%clk 0:02:55.3]} 2...
d6 {[%clk 0:03:00.3]} 3. g3 {[%clk 0:02:56.5]} 3... g6 {[%clk 0:03:01.4]} 4. Bg2
{[%clk 0:02:57.5]} 4... Bg7 {[%clk 0:03:02.9]} 5. d3 {[%clk 0:02:55.9]} 5... e6
{[%clk 0:03:04.2]} 6. Be3 {[%clk 0:02:56.7]} 6... Nc6 {[%clk 0:03:03.9]} 7. Qd2
{[%clk 0:02:57.5]} 7... Rb8 {[%clk 0:02:58.8]} 8. a4 {[%clk 0:02:34.1]} 8... Nd4
{[%clk 0:02:52.5]} 9. Nge2 {[%clk 0:02:31.6]} 9... Nxe2 {[%clk 0:02:51.3]} 10.
Qxe2 {[%clk 0:02:22.3]} 10... Ne7 {[%clk 0:02:50.6]} 11. O-O {[%clk 0:02:22]}
11... O-O {[%clk 0:02:51.4]} 12. Qd2 {[%clk 0:02:05.9]} 12... b6 {[%clk
0:02:43.5]} 13. d4 {[%clk 0:01:55.8]} 13... Bb7 {[%clk 0:02:25.3]} 14. Rad1
{[%clk 0:01:43.3]} 14... Rc8 {[%clk 0:01:37.7]} 15. f4 {[%clk 0:01:10.9]} 15...
f5 {[%clk 0:01:26.5]} 16. dxc5 {[%clk 0:00:52]} 16... dxc5 {[%clk 0:01:23.3]}
17. e5 {[%clk 0:00:51.8]} 17... Bxg2 {[%clk 0:01:21]} 18. Qxg2 {[%clk
0:00:50.6]} 18... Qc7 {[%clk 0:01:16.2]} 19. Nb5 {[%clk 0:00:50.8]} 19... Qb8
{[%clk 0:01:17.2]} 20. Rd7 {[%clk 0:00:51]} 20... Nd5 {[%clk 0:01:12.6]} 21. Bf2
{[%clk 0:00:39.9]} 21... a6 {[%clk 0:01:13.8]} 22. Nd6 {[%clk 0:00:40.2]} 22...
Rc7 {[%clk 0:01:14.6]} 23. Rxc7 {[%clk 0:00:39.8]} 23... Qxc7 {[%clk 0:01:16.5]}
24. Rd1 {[%clk 0:00:39.2]} 24... Rd8 {[%clk 0:01:14.6]} 25. c4 {[%clk 0:00:37]}
25... Nb4 {[%clk 0:01:06.3]} 26. g4 {[%clk 0:00:37.5]} 26... Nc6 {[%clk
0:00:58]} 27. gxf5 {[%clk 0:00:36.4]} 27... exf5 {[%clk 0:00:59]} 28. Qd5+
{[%clk 0:00:35.8]} 28... Kf8 {[%clk 0:00:56]} 29. Bh4 {[%clk 0:00:32.9]} 29...
Rd7 {[%clk 0:00:51.5]} 30. e6 {[%clk 0:00:27.2]} 30... Rxd6 {[%clk 0:00:42.2]}
31. Qxd6+ {[%clk 0:00:26.8]} 31... Qxd6 {[%clk 0:00:29.1]} 32. Rxd6 {[%clk
0:00:27.4]} 32... Bd4+ {[%clk 0:00:30.7]} 33. Kg2 {[%clk 0:00:27.6]} 33... Bxb2
{[%clk 0:00:28.7]} 34. Rxc6 {[%clk 0:00:28]} 1-0

[Event "*** Qualifier 1: Titled Tuesday 3|2 Blitz"]
[Site "Chess.com"]
[Date "2017.04.04"]
[Round "1"]
[White "Gabix_94"]
[Black "Goala"]
[Result "1-0"]
[WhiteElo "2502"]
[BlackElo "2199"]
[TimeControl "180+2"]
[EndTime "13:07:54 PDT"]
[Termination "Gabix_94 won by resignation"]

1. e4 {[%clk 0:03:02]} 1... e6 {[%clk 0:03:01.4]} 2. d4 {[%clk 0:03:00.3]} 2...
d5 {[%clk 0:03:02.9]} 3. Nc3 {[%clk 0:03:01.3]} 3... Nf6 {[%clk 0:03:04.5]} 4.
Bg5 {[%clk 0:02:59.3]} 4... Be7 {[%clk 0:03:05.1]} 5. e5 {[%clk 0:02:59.5]} 5...
Nfd7 {[%clk 0:03:06.7]} 6. Bxe7 {[%clk 0:02:58.2]} 6... Qxe7 {[%clk 0:03:08.6]}
7. f4 {[%clk 0:02:59]} 7... a6 {[%clk 0:03:09.6]} 8. Nf3 {[%clk 0:02:59.7]} 8...
Nb6 {[%clk 0:03:11.2]} 9. Bd3 {[%clk 0:02:57.6]} 9... Bd7 {[%clk 0:03:10.5]} 10.
Qe2 {[%clk 0:02:50.3]} 10... c5 {[%clk 0:03:10.4]} 11. dxc5 {[%clk 0:02:43.7]}
11... Qxc5 {[%clk 0:03:12.3]} 12. O-O-O {[%clk 0:02:30.9]} 12... Nc6 {[%clk
0:03:12.1]} 13. Kb1 {[%clk 0:02:31.7]} 13... O-O-O {[%clk 0:03:04.7]} 14. Ng5
{[%clk 0:02:31]} 14... Qe7 {[%clk 0:02:58.7]} 15. Qf2 {[%clk 0:02:31.2]} 15...
Na8 {[%clk 0:02:24]} 16. Rhe1 {[%clk 0:02:28.2]} 16... h6 {[%clk 0:02:24.6]} 17.
Nf3 {[%clk 0:02:27.6]} 17... Kb8 {[%clk 0:02:21.7]} 18. f5 {[%clk 0:02:14.9]}
18... Rc8 {[%clk 0:02:19.9]} 19. g4 {[%clk 0:02:02.1]} 19... Qb4 {[%clk
0:02:20.3]} 20. a3 {[%clk 0:02:01.8]} 20... Qxg4 {[%clk 0:02:15.6]} 21. Rg1
{[%clk 0:02:01.7]} 21... Qf4 {[%clk 0:02:16.2]} 22. Ne2 {[%clk 0:01:52.6]} 22...
Qa4 {[%clk 0:02:08.2]} 23. Rxg7 {[%clk 0:01:50.8]} 23... Rhf8 {[%clk 0:01:53.7]}
24. fxe6 {[%clk 0:01:50.8]} 24... Bxe6 {[%clk 0:01:54.1]} 25. Nfd4 {[%clk
0:01:48.8]} 25... Nc7 {[%clk 0:01:47.3]} 26. b3 {[%clk 0:01:44]} 26... Qa5
{[%clk 0:01:28.5]} 27. Kb2 {[%clk 0:01:42.4]} 27... Nxe5 {[%clk 0:01:22.5]} 28.
Qg3 {[%clk 0:01:36.6]} 28... Nxd3+ {[%clk 0:01:19.3]} 29. Rxd3 {[%clk
0:01:38.5]} 29... Ka8 {[%clk 0:01:18.3]} 30. a4 {[%clk 0:01:32.8]} 30... Qc5
{[%clk 0:01:11.7]} 31. Rc3 {[%clk 0:01:32.8]} 31... Qe7 {[%clk 0:01:04.9]} 32.
Nf4 {[%clk 0:01:31.3]} 32... Qf6 {[%clk 0:01:00.9]} 33. Rd3 {[%clk 0:01:29.2]}
33... Bf5 {[%clk 0:00:50.4]} 34. Nh5 {[%clk 0:01:26]} 34... Qe7 {[%clk
0:00:13.5]} 35. Nxf5 {[%clk 0:01:26]} 35... Qb4 {[%clk 0:00:15.1]} 36. Qf4
{[%clk 0:01:23]} 36... Qb6 {[%clk 0:00:14.3]} 37. Qd4 {[%clk 0:01:22.7]} 37...
Qe6 {[%clk 0:00:11.9]} 38. Nhg3 {[%clk 0:01:23.4]} 38... Qe1 {[%clk 0:00:11.6]}
39. Re3 {[%clk 0:01:16.5]} 39... Qg1 {[%clk 0:00:10.6]} 40. Re7 {[%clk
0:01:15.2]} 40... Ne6 {[%clk 0:00:11.6]} 41. Qxg1 {[%clk 0:01:15.8]} 1-0

[Event "*** Qualifier 1: Titled Tuesday 3|2 Blitz"]
[Site "Chess.com"]
[Date "2017.04.04"]
[Round "1"]
[White "Keranke"]
[Black "TheNextLevelFan"]
[Result "1-0"]
[WhiteElo "2711"]
[BlackElo "2346"]
[TimeControl "180+2"]
[EndTime "13:07:57 PDT"]
[Termination "Keranke won by resignation"]

1. d4 {[%clk 0:03:02]} 1... Nf6 {[%clk 0:02:59.7]} 2. c4 {[%clk 0:03:01.9]} 2...
e6 {[%clk 0:03:01]} 3. g3 {[%clk 0:03:02.8]} 3... d5 {[%clk 0:03:01.7]} 4. Bg2
{[%clk 0:03:03.8]} 4... Be7 {[%clk 0:03:03.4]} 5. Nf3 {[%clk 0:03:05.3]} 5...
O-O {[%clk 0:03:04.9]} 6. O-O {[%clk 0:03:06.8]} 6... dxc4 {[%clk 0:03:06.2]} 7.
Qc2 {[%clk 0:03:08]} 7... a6 {[%clk 0:03:07.7]} 8. Qxc4 {[%clk 0:03:08.4]} 8...
b5 {[%clk 0:03:08.2]} 9. Qc2 {[%clk 0:03:10.1]} 9... Bb7 {[%clk 0:03:09.3]} 10.
Bd2 {[%clk 0:03:11.9]} 10... Be4 {[%clk 0:03:09.2]} 11. Qc1 {[%clk 0:03:12.7]}
11... Nbd7 {[%clk 0:02:55.4]} 12. Ba5 {[%clk 0:03:11.9]} 12... Ra7 {[%clk
0:02:52.2]} 13. Nbd2 {[%clk 0:03:10]} 13... Bd5 {[%clk 0:02:42.2]} 14. Qc2
{[%clk 0:03:03.2]} 14... Qa8 {[%clk 0:02:42.6]} 15. b4 {[%clk 0:02:56]} 15...
Nb6 {[%clk 0:02:37]} 16. Rfc1 {[%clk 0:02:51.5]} 16... h6 {[%clk 0:02:12.4]} 17.
e3 {[%clk 0:02:50.1]} 17... Ne4 {[%clk 0:02:10.5]} 18. Bf1 {[%clk 0:02:35.6]}
18... Na4 {[%clk 0:01:05.5]} 19. Ne5 {[%clk 0:02:25]} 19... Bd6 {[%clk
0:00:44.7]} 20. Nxe4 {[%clk 0:02:04.1]} 20... Bxe4 {[%clk 0:00:45.2]} 21. Bd3
{[%clk 0:02:05.8]} 21... Bxd3 {[%clk 0:00:34.1]} 22. Nxd3 {[%clk 0:02:07.7]}
22... Qe4 {[%clk 0:00:27.2]} 23. Ne5 {[%clk 0:02:03.4]} 23... Qxc2 {[%clk
0:00:27.6]} 24. Rxc2 {[%clk 0:02:04.9]} 24... Bxe5 {[%clk 0:00:26.2]} 25. dxe5
{[%clk 0:02:06.8]} 25... Rc8 {[%clk 0:00:20.5]} 26. Rac1 {[%clk 0:02:02.4]}
26... Kf8 {[%clk 0:00:21.4]} 27. Bxc7 {[%clk 0:02:01.3]} 27... Ke8 {[%clk
0:00:22.7]} 28. Bd6 {[%clk 0:01:57.6]} 28... Rxc2 {[%clk 0:00:23]} 29. Rxc2
{[%clk 0:01:59.5]} 29... Kd7 {[%clk 0:00:24.4]} 30. Kg2 {[%clk 0:01:58.5]} 30...
Rb7 {[%clk 0:00:23.2]} 31. Bf8 {[%clk 0:01:58.7]} 31... g6 {[%clk 0:00:19.5]}
32. Bxh6 {[%clk 0:01:59.8]} 32... Nb6 {[%clk 0:00:20.4]} 33. Bf8 {[%clk
0:01:57.2]} 33... Nc4 {[%clk 0:00:19.9]} 34. Bd6 {[%clk 0:01:57.6]} 34... Kc6
{[%clk 0:00:11.8]} 35. h4 {[%clk 0:01:50.4]} 35... Kd5 {[%clk 0:00:12.8]} 36. g4
{[%clk 0:01:50.7]} 36... Ke4 {[%clk 0:00:12.2]} 37. Kg3 {[%clk 0:01:47.4]} 37...
Rd7 {[%clk 0:00:12.7]} 38. Rc1 {[%clk 0:01:44.8]} 38... Nxd6 {[%clk 0:00:12.3]}
39. exd6 {[%clk 0:01:45.7]} 39... Rxd6 {[%clk 0:00:14.2]} 40. Rc7 {[%clk
0:01:47]} 40... f5 {[%clk 0:00:15.2]} 41. Rg7 {[%clk 0:01:46.8]} 41... e5 {[%clk
0:00:16.6]} 42. h5 {[%clk 0:01:43.1]} 42... gxh5 {[%clk 0:00:17]} 43. gxh5
{[%clk 0:01:44.1]} 43... f4+ {[%clk 0:00:18.5]} 44. exf4 {[%clk 0:01:44.2]}
44... exf4+ {[%clk 0:00:20.4]} 45. Kg4 {[%clk 0:01:44.2]} 45... Re6 {[%clk
0:00:21]} 46. Rg6 {[%clk 0:01:44.1]} 46... Re8 {[%clk 0:00:20.5]} 47. h6 {[%clk
0:01:43.6]} 47... f3 {[%clk 0:00:21.7]} 48. h7 {[%clk 0:01:43.4]} 48... Rh8
{[%clk 0:00:22.2]} 49. Rh6 {[%clk 0:01:44.9]} 1-0

[Event "*** Qualifier 1: Titled Tuesday 3|2 Blitz"]
[Site "Chess.com"]
[Date "2017.04.04"]
[Round "1"]
[White "ZEN-22"]
[Black "pKiLz5Rn9b"]
[Result "1-0"]
[WhiteElo "2327"]
[BlackElo "2614"]
[TimeControl "180+2"]
[EndTime "13:08:05 PDT"]
[Termination "ZEN-22 won by resignation"]

1. e4 {[%clk 0:02:58.2]} 1... e6 {[%clk 0:03:00.6]} 2. Bc4 {[%clk 0:02:57.7]}
2... d5 {[%clk 0:03:01.5]} 3. Bb3 {[%clk 0:02:58.4]} 3... dxe4 {[%clk
0:02:59.6]} 4. Nc3 {[%clk 0:02:59.6]} 4... Nf6 {[%clk 0:03:00.9]} 5. f3 {[%clk
0:03:00.9]} 5... exf3 {[%clk 0:02:58.8]} 6. Nxf3 {[%clk 0:03:02.8]} 6... Nc6
{[%clk 0:03:00.1]} 7. d4 {[%clk 0:03:03]} 7... h6 {[%clk 0:02:57.7]} 8. O-O
{[%clk 0:03:03.6]} 8... Bd6 {[%clk 0:02:59]} 9. Kh1 {[%clk 0:03:04.1]} 9... Nb4
{[%clk 0:02:53.4]} 10. a3 {[%clk 0:03:01.5]} 10... Nbd5 {[%clk 0:02:53.1]} 11.
Ne2 {[%clk 0:03:03]} 11... c5 {[%clk 0:02:49.2]} 12. c4 {[%clk 0:03:03.5]} 12...
Nb6 {[%clk 0:02:49.5]} 13. dxc5 {[%clk 0:02:59.3]} 13... Bxc5 {[%clk 0:02:49.8]}
14. Qe1 {[%clk 0:02:52.4]} 14... Qc7 {[%clk 0:02:43.9]} 15. Ba2 {[%clk
0:02:50.6]} 15... a5 {[%clk 0:02:42.4]} 16. Bf4 {[%clk 0:02:41.1]} 16... Bd6
{[%clk 0:02:39.6]} 17. c5 {[%clk 0:02:31.1]} 17... Bxf4 {[%clk 0:02:21.1]} 18.
cxb6 {[%clk 0:02:31.9]} 18... Qb8 {[%clk 0:02:17.1]} 19. Nxf4 {[%clk 0:02:28.3]}
19... Qxf4 {[%clk 0:02:19]} 20. Ne5 {[%clk 0:02:29.1]} 20... Qd4 {[%clk
0:02:19]} 21. Qg3 {[%clk 0:02:15.5]} 21... Nh5 {[%clk 0:02:04.4]} 22. Qf3 {[%clk
0:01:51.6]} 22... Nf6 {[%clk 0:02:03.1]} 23. Qg3 {[%clk 0:01:38.6]} 23... Kf8
{[%clk 0:01:26.9]} 24. Rad1 {[%clk 0:01:36.4]} 24... Qxb6 {[%clk 0:01:27.6]} 25.
Ng6+ {[%clk 0:01:20.8]} 25... fxg6 {[%clk 0:00:51.7]} 26. Qxg6 {[%clk
0:01:22.7]} 26... Rg8 {[%clk 0:00:44.2]} 27. Bc4 {[%clk 0:00:42.6]} 27... Qxb2
{[%clk 0:00:16.4]} 28. h3 {[%clk 0:00:29]} 28... Qb6 {[%clk 0:00:13.3]} 29.
Rxf6+ {[%clk 0:00:28.5]} 29... gxf6 {[%clk 0:00:04.4]} 30. Qxf6+ {[%clk
0:00:30.4]} 30... Ke8 {[%clk 0:00:04]} 31. Bb5+ {[%clk 0:00:32.3]} 1-0

[Event "*** Qualifier 1: Titled Tuesday 3|2 Blitz"]
[Site "Chess.com"]
[Date "2017.04.04"]
[Round "1"]
[White "macko06"]
[Black "severomorskij"]
[Result "0-1"]
[WhiteElo "2322"]
[BlackElo "2639"]
[TimeControl "180+2"]
[EndTime "13:08:07 PDT"]
[Termination "severomorskij won by resignation"]

1. d4 {[%clk 0:03:02]} 1... Nf6 {[%clk 0:03:00.2]} 2. Bf4 {[%clk 0:03:02.1]}
2... c5 {[%clk 0:02:55.3]} 3. e3 {[%clk 0:03:01.9]} 3... Nd5 {[%clk 0:02:49.3]}
4. dxc5 {[%clk 0:02:40.9]} 4... Nxf4 {[%clk 0:02:47.5]} 5. exf4 {[%clk
0:02:42.8]} 5... e6 {[%clk 0:02:42.1]} 6. Nf3 {[%clk 0:02:38.8]} 6... Bxc5
{[%clk 0:02:40.7]} 7. Bd3 {[%clk 0:02:35.4]} 7... Qb6 {[%clk 0:02:28.8]} 8. O-O
{[%clk 0:02:35.8]} 8... Qxb2 {[%clk 0:02:28.9]} 9. Nbd2 {[%clk 0:02:36.8]} 9...
d5 {[%clk 0:02:21.4]} 10. Nb3 {[%clk 0:02:18.6]} 10... Qc3 {[%clk 0:02:08.8]}
11. f5 {[%clk 0:01:57.2]} 11... Nc6 {[%clk 0:01:51.2]} 12. Re1 {[%clk
0:01:45.4]} 12... Bb6 {[%clk 0:01:16]} 13. fxe6 {[%clk 0:01:34.1]} 13... Bxe6
{[%clk 0:01:16.7]} 14. Ng5 {[%clk 0:01:29.8]} 14... Qf6 {[%clk 0:01:07.5]} 15.
Nxe6 {[%clk 0:01:15.3]} 15... fxe6 {[%clk 0:01:07.8]} 16. Qe2 {[%clk 0:01:10.4]}
16... e5 {[%clk 0:00:59.2]} 17. c4 {[%clk 0:01:04.5]} 17... O-O {[%clk
0:00:55.7]} 18. cxd5 {[%clk 0:00:49.7]} 18... Bxf2+ {[%clk 0:00:53.1]} 19. Kh1
{[%clk 0:00:50.3]} 19... Bxe1 {[%clk 0:00:50.8]} 20. dxc6 {[%clk 0:00:47.5]}
20... Bc3 {[%clk 0:00:32.5]} 21. Rc1 {[%clk 0:00:45.4]} 21... Bd4 {[%clk
0:00:24.5]} 22. cxb7 {[%clk 0:00:42.3]} 22... Rab8 {[%clk 0:00:24.9]} 23. Be4
{[%clk 0:00:39.1]} 23... Bb6 {[%clk 0:00:22]} 24. Nd2 {[%clk 0:00:27.6]} 24...
Qf4 {[%clk 0:00:17.6]} 25. Rf1 {[%clk 0:00:22.9]} 25... Qg5 {[%clk 0:00:17]} 26.
Nf3 {[%clk 0:00:22.9]} 26... Qe7 {[%clk 0:00:16.6]} 27. Bd5+ {[%clk 0:00:22.3]}
27... Kh8 {[%clk 0:00:17.3]} 28. Re1 {[%clk 0:00:19.7]} 28... Bc7 {[%clk
0:00:17.2]} 29. Kg1 {[%clk 0:00:17.5]} 29... Qc5+ {[%clk 0:00:16.8]} 30. Qe3
{[%clk 0:00:16.3]} 30... Qxd5 {[%clk 0:00:17]} 31. Ng5 {[%clk 0:00:16.1]} 31...
Bb6 {[%clk 0:00:17]} 0-1

[Event "*** Qualifier 1: Titled Tuesday 3|2 Blitz"]
[Site "Chess.com"]
[Date "2017.04.04"]
[Round "1"]
[White "AmazingAtlas"]
[Black "OldweakGM"]
[Result "0-1"]
[WhiteElo "2293"]
[BlackElo "2614"]
[TimeControl "180+2"]
[EndTime "13:08:12 PDT"]
[Termination "OldweakGM won by resignation"]

1. e4 {[%clk 0:03:02]} 1... c6 {[%clk 0:03:00.8]} 2. Nc3 {[%clk 0:03:01.8]} 2...
d5 {[%clk 0:03:01.6]} 3. Nf3 {[%clk 0:03:01.7]} 3... dxe4 {[%clk 0:03:02.6]} 4.
Nxe4 {[%clk 0:03:02.4]} 4... Nf6 {[%clk 0:03:04.2]} 5. Nxf6+ {[%clk 0:03:02.1]}
5... exf6 {[%clk 0:03:06.1]} 6. g3 {[%clk 0:03:02.7]} 6... Bd6 {[%clk
0:02:57.6]} 7. Qe2+ {[%clk 0:03:02.8]} 7... Be7 {[%clk 0:02:58.1]} 8. Bg2 {[%clk
0:03:03.4]} 8... O-O {[%clk 0:02:59.2]} 9. O-O {[%clk 0:03:04.2]} 9... Be6
{[%clk 0:02:56.8]} 10. d4 {[%clk 0:03:05]} 10... Re8 {[%clk 0:02:55.6]} 11. Qd3
{[%clk 0:03:04.2]} 11... Qd7 {[%clk 0:02:55.9]} 12. Re1 {[%clk 0:03:03.2]} 12...
Na6 {[%clk 0:02:55.5]} 13. a3 {[%clk 0:02:50.7]} 13... Bf5 {[%clk 0:02:51.1]}
14. Qb3 {[%clk 0:02:47.5]} 14... Be6 {[%clk 0:02:48]} 15. Qd3 {[%clk 0:02:48.3]}
15... Rad8 {[%clk 0:02:48.7]} 16. Bd2 {[%clk 0:02:46.2]} 16... Bf8 {[%clk
0:02:47.8]} 17. Rad1 {[%clk 0:02:44.8]} 17... Nc7 {[%clk 0:02:39.5]} 18. c4
{[%clk 0:02:42.7]} 18... b5 {[%clk 0:02:33.1]} 19. cxb5 {[%clk 0:01:45.1]} 19...
Nxb5 {[%clk 0:02:24.7]} 20. Be3 {[%clk 0:01:46.3]} 20... Bd5 {[%clk 0:02:24.5]}
21. Nd2 {[%clk 0:01:41.5]} 21... Bxg2 {[%clk 0:01:55.3]} 22. Kxg2 {[%clk
0:01:43.4]} 22... c5 {[%clk 0:01:56.7]} 23. Nf3 {[%clk 0:01:07.1]} 23... cxd4
{[%clk 0:01:53.7]} 24. a4 {[%clk 0:01:04.1]} 24... Qc8 {[%clk 0:01:17.5]} 25.
Qxb5 {[%clk 0:00:49.4]} 25... dxe3 {[%clk 0:01:18.1]} 26. Rxd8 {[%clk 0:00:48]}
26... Qxd8 {[%clk 0:01:19.1]} 27. Rxe3 {[%clk 0:00:42.4]} 27... Rxe3 {[%clk
0:01:19.6]} 28. fxe3 {[%clk 0:00:44.3]} 28... Qd1 {[%clk 0:01:17.2]} 29. Nd4
{[%clk 0:00:34.8]} 29... g6 {[%clk 0:01:15.8]} 30. b3 {[%clk 0:00:31]} 30...
Qd2+ {[%clk 0:01:13.9]} 31. Qe2 {[%clk 0:00:31.2]} 31... Qc3 {[%clk 0:01:13.5]}
32. Kf3 {[%clk 0:00:27]} 32... a5 {[%clk 0:01:10.3]} 33. Qc4 {[%clk 0:00:24.3]}
33... Qe1 {[%clk 0:01:09.7]} 34. Nc2 {[%clk 0:00:22.7]} 34... Qh1+ {[%clk
0:01:09.6]} 35. Ke2 {[%clk 0:00:20.3]} 35... Qxh2+ {[%clk 0:01:10.5]} 36. Kd3
{[%clk 0:00:20.9]} 36... Qxg3 {[%clk 0:01:11.5]} 37. Qc3 {[%clk 0:00:19.9]}
37... Qd6+ {[%clk 0:01:10]} 38. Ke2 {[%clk 0:00:21.3]} 38... Qd5 {[%clk
0:01:09.5]} 0-1

[Event "*** Qualifier 1: Titled Tuesday 3|2 Blitz"]
[Site "Chess.com"]
[Date "2017.04.04"]
[Round "1"]
[White "Rock700chess"]
[Black "Blitzstream"]
[Result "0-1"]
[WhiteElo "2197"]
[BlackElo "2492"]
[TimeControl "180+2"]
[EndTime "13:08:19 PDT"]
[Termination "Blitzstream won by resignation"]

1. e4 {[%clk 0:03:00.3]} 1... d5 {[%clk 0:03:00.9]} 2. exd5 {[%clk 0:02:59.5]}
2... Qxd5 {[%clk 0:03:02.8]} 3. Nf3 {[%clk 0:02:57.4]} 3... Bg4 {[%clk
0:03:03.5]} 4. Be2 {[%clk 0:02:56.2]} 4... Nc6 {[%clk 0:03:04.4]} 5. d4 {[%clk
0:02:52.5]} 5... O-O-O {[%clk 0:03:03]} 6. c3 {[%clk 0:02:51.9]} 6... e5 {[%clk
0:03:03.3]} 7. Be3 {[%clk 0:02:29.9]} 7... e4 {[%clk 0:02:50.1]} 8. Nfd2 {[%clk
0:02:24.8]} 8... Bxe2 {[%clk 0:02:50.9]} 9. Qxe2 {[%clk 0:02:26.6]} 9... f5
{[%clk 0:02:52.5]} 10. g4 {[%clk 0:02:17.8]} 10... g6 {[%clk 0:02:22.7]} 11. h4
{[%clk 0:02:14.3]} 11... Nf6 {[%clk 0:02:21.1]} 12. c4 {[%clk 0:01:23]} 12...
Qd7 {[%clk 0:02:11.8]} 13. gxf5 {[%clk 0:01:10.1]} 13... gxf5 {[%clk 0:02:12.3]}
14. Nb3 {[%clk 0:01:07.4]} 14... Nb4 {[%clk 0:01:38.5]} 15. Nc3 {[%clk 0:00:58]}
15... Nd3+ {[%clk 0:01:38.3]} 16. Kd1 {[%clk 0:00:57.2]} 16... Bb4 {[%clk
0:01:29.8]} 17. Bg5 {[%clk 0:00:55]} 17... Rhf8 {[%clk 0:01:23.6]} 18. Nd5
{[%clk 0:00:42.3]} 18... Nxd5 {[%clk 0:01:24.4]} 19. cxd5 {[%clk 0:00:42.7]}
19... Rde8 {[%clk 0:01:16.1]} 20. Rg1 {[%clk 0:00:21.7]} 20... Qxd5 {[%clk
0:01:16.7]} 21. Bd2 {[%clk 0:00:20]} 21... Nxb2+ {[%clk 0:01:07.1]} 22. Kc2
{[%clk 0:00:18.8]} 22... Nd3 {[%clk 0:01:05.4]} 23. Rad1 {[%clk 0:00:19.1]}
23... Re6 {[%clk 0:00:52.8]} 24. Bxb4 {[%clk 0:00:17.9]} 24... Nxb4+ {[%clk
0:00:54.7]} 25. Kb1 {[%clk 0:00:17.2]} 25... Ra6 {[%clk 0:00:55.5]} 26. Rd2
{[%clk 0:00:16.4]} 26... Nxa2 {[%clk 0:00:51.4]} 27. Rxa2 {[%clk 0:00:16.4]}
27... Qxb3+ {[%clk 0:00:52.4]} 28. Rb2 {[%clk 0:00:14.9]} 28... Qa4 {[%clk
0:00:52]} 29. Qb5 {[%clk 0:00:13.2]} 29... Qxb5 {[%clk 0:00:43.9]} 30. Rxb5
{[%clk 0:00:15.1]} 30... Rf7 {[%clk 0:00:40.5]} 31. h5 {[%clk 0:00:13.7]} 31...
Rb6 {[%clk 0:00:33]} 32. Rxb6 {[%clk 0:00:13.7]} 32... axb6 {[%clk 0:00:34.9]}
33. Kc2 {[%clk 0:00:12.9]} 33... Kd7 {[%clk 0:00:36.5]} 34. h6 {[%clk
0:00:12.1]} 34... Ke6 {[%clk 0:00:37.7]} 35. Kd2 {[%clk 0:00:11.9]} 35... b5
{[%clk 0:00:37.4]} 36. Ke3 {[%clk 0:00:13.1]} 36... b6 {[%clk 0:00:37.7]} 37.
Rg7 {[%clk 0:00:10.6]} 37... Rxg7 {[%clk 0:00:34.5]} 38. hxg7 {[%clk 0:00:12.5]}
38... Kf7 {[%clk 0:00:36.1]} 0-1

[Event "*** Qualifier 1: Titled Tuesday 3|2 Blitz"]
[Site "Chess.com"]
[Date "2017.04.04"]
[Round "1"]
[White "ShimanovAlex"]
[Black "geeeeri"]
[Result "1-0"]
[WhiteElo "2627"]
[BlackElo "2308"]
[TimeControl "180+2"]
[EndTime "13:08:36 PDT"]
[Termination "ShimanovAlex won by resignation"]

1. d4 {[%clk 0:02:52.7]} 1... e6 {[%clk 0:03:00.4]} 2. Bf4 {[%clk 0:02:52.1]}
2... d5 {[%clk 0:02:55.8]} 3. e3 {[%clk 0:02:52.7]} 3... Nf6 {[%clk 0:02:56.7]}
4. Nd2 {[%clk 0:02:52.9]} 4... c5 {[%clk 0:02:57.5]} 5. c3 {[%clk 0:02:53.7]}
5... Nc6 {[%clk 0:02:59.2]} 6. Ngf3 {[%clk 0:02:53.2]} 6... Bd6 {[%clk
0:02:55.9]} 7. Bg3 {[%clk 0:02:53.6]} 7... Qc7 {[%clk 0:02:56.9]} 8. Bb5 {[%clk
0:02:45.9]} 8... Bd7 {[%clk 0:02:43.6]} 9. dxc5 {[%clk 0:02:29.7]} 9... Bxg3
{[%clk 0:02:43.5]} 10. hxg3 {[%clk 0:02:30.7]} 10... Qa5 {[%clk 0:02:34.3]} 11.
a4 {[%clk 0:02:28.4]} 11... Qc7 {[%clk 0:01:35.3]} 12. O-O {[%clk 0:02:20.4]}
12... a6 {[%clk 0:01:36.5]} 13. Bxc6 {[%clk 0:02:17.7]} 13... bxc6 {[%clk
0:01:38.4]} 14. b4 {[%clk 0:02:15.4]} 14... e5 {[%clk 0:01:39.6]} 15. e4 {[%clk
0:02:00.4]} 15... O-O {[%clk 0:01:32.3]} 16. Re1 {[%clk 0:01:54]} 16... Bg4
{[%clk 0:01:32.4]} 17. Qc2 {[%clk 0:01:54]} 17... Rfe8 {[%clk 0:01:33.1]} 18.
exd5 {[%clk 0:01:41.6]} 18... cxd5 {[%clk 0:01:33]} 19. Re3 {[%clk 0:01:42.2]}
19... e4 {[%clk 0:01:29.1]} 20. Nd4 {[%clk 0:01:42.6]} 20... Bd7 {[%clk
0:01:27.7]} 21. Nf1 {[%clk 0:01:28.5]} 21... Qe5 {[%clk 0:00:51.9]} 22. Ree1
{[%clk 0:01:27.1]} 22... Qh5 {[%clk 0:00:51.9]} 23. Ne3 {[%clk 0:01:27.8]} 23...
Rac8 {[%clk 0:00:44.3]} 24. c4 {[%clk 0:01:25.2]} 24... Re5 {[%clk 0:00:42.9]}
25. cxd5 {[%clk 0:00:57.8]} 25... Qh6 {[%clk 0:00:32.7]} 26. c6 {[%clk
0:00:50.8]} 26... Bg4 {[%clk 0:00:25.7]} 27. f4 {[%clk 0:00:22.9]} 27... Rh5
{[%clk 0:00:21.1]} 28. Kf2 {[%clk 0:00:23.3]} 28... Bf3 {[%clk 0:00:19.6]} 29.
Rg1 {[%clk 0:00:21]} 29... Rh2 {[%clk 0:00:20.4]} 30. d6 {[%clk 0:00:20.6]}
30... Qh3 {[%clk 0:00:13.7]} 31. Nxf3 {[%clk 0:00:11.5]} 31... exf3 {[%clk
0:00:12.7]} 32. Kxf3 {[%clk 0:00:12.2]} 32... Qh5+ {[%clk 0:00:07.5]} 33. Kf2
{[%clk 0:00:13.5]} 33... Re8 {[%clk 0:00:06.6]} 34. d7 {[%clk 0:00:14]} 34...
Nxd7 {[%clk 0:00:04.5]} 35. cxd7 {[%clk 0:00:14.6]} 35... Rd8 {[%clk 0:00:05.8]}
36. Qc7 {[%clk 0:00:14]} 1-0